bitfinex/quotes_ETHUSD_20250112
["timestamp","ask_amount","ask_price","bid_price","bid_amount"]
[1736716279539,0.8246,3282.2,3281.4,2.13318]
[1736716279540,0.8246,3282.2,3281.3,0.03047134]
[1736716279777,0.8246,3281.4,3281.0,5.38]
[1736716280444,1.120377,3281.4,3280.8,5.38]
[1736716280659,0.8246,3281.5,3280.8,5.38]
[1736716280843,2.13324,3281.4,3280.8,5.38]
[1736716281052,0.8246,3281.3,3280.8,5.38]
[1736716281792,0.8246,3281.3,3280.9,0.07618334]
[1736716281954,1.120384,3281.3,3280.9,0.07618334]
[1736716282755,0.8246,3281.3,3280.9,0.07618334]
[1736716291364,0.209,3281.4,3281.0,0.8301]
[1736716291664,0.209,3281.4,3281.0,0.90674857]
[1736716292024,0.7942,3281.3,3281.0,0.07664857]
[1736716292216,0.7942,3281.3,3280.8,5.38]
[1736716292517,0.7942,3281.3,3281.1,0.07664857]
[1736716292692,0.7942,3281.3,3280.8,5.38]
[1736716293175,0.7942,3281.3,3280.9,0.07664857]
[1736716293381,1.107838,3281.3,3280.9,0.07664857]
[1736716295521,0.7942,3281.3,3280.9,0.07664857]
[1736716297501,4.20572513,3282.0,3280.9,0.07664857]
[1736716297502,0.8293,3281.6,3281.0,0.8111]
[1736716298067,0.8293,3281.6,3281.1,0.07664857]
[1736716299269,0.8293,3281.4,3281.1,0.07664857]
[1736716299668,0.8293,3281.4,3280.8,5.38]
[1736716299877,0.8293,3281.4,3281.2,0.07664857]
[1736716300082,0.8293,3281.4,3280.8,5.38]
[1736716300285,0.8293,3281.4,3281.3,0.07664857]
[1736716300501,0.8293,3281.4,3280.8,5.38]
[1736716301005,0.8293,3281.4,3280.9,0.07698548]
[1736716304778,2.96253,3281.4,3280.9,0.07698548]
[1736716304979,3.37935551,3281.4,3280.9,0.07698548]
[1736716308209,3.37935551,3281.4,3281.0,0.07698548]
[1736716308510,3.37935551,3281.4,3280.6,1.42770266]
[1736716308710,3.17153,3281.4,3281.1,0.07698548]
[1736716309015,3.17153,3281.4,3281.2,0.07698548]
[1736716309204,3.17153,3281.4,3280.6,1.42770266]
[1736716309509,3.17153,3281.4,3281.3,0.07698548]
[1736716309717,3.17153,3281.4,3280.6,1.42770266]
[1736716309947,2.34223,3281.4,3280.6,1.81075393]
[1736716310082,2.34223,3281.4,3280.7,0.07698548]
[1736716310083,1.20572513,3280.9,3280.7,0.07698548]
[1736716310284,2.88592,3280.8,3280.7,0.07698548]
[1736716310517,2.88592,3280.8,3280.1,5.38]
[1736716310731,1.20572513,3280.7,3280.1,5.38]
[1736716311033,1.20572513,3280.7,3280.2,0.0722139]
[1736716311614,2.13375,3280.6,3280.2,0.0722139]
[1736716312183,2.54292751,3280.6,3280.2,0.0722139]
[1736716312383,0.7763,3280.5,3280.2,0.0722139]
[1736716313812,2.91012,3280.5,3280.2,0.0722139]
[1736716314125,2.91012,3280.5,3279.8,1.41482459]
[1736716314432,0.7763,3280.4,3279.7,5.38]
[1736716314624,0.7763,3280.4,3279.9,0.0722139]
[1736716314820,2.91019,3280.4,3279.7,5.38]
[1736716315202,2.91019,3280.4,3279.8,0.0722139]
[1736716317348,3.24123958,3280.4,3279.8,0.0722139]
[1736716317634,3.24123958,3280.4,3279.6,1.41884518]
[1736716317799,3.24123958,3280.4,3279.9,0.0722139]
[1736716317995,3.24123958,3280.4,3279.6,1.41884518]
[1736716318251,0.55,3280.3,3280.0,0.0722139]
[1736716318454,0.55,3280.3,3279.6,1.41884518]
[1736716318758,0.55,3280.3,3279.6,2.0741827]
[1736716318925,0.55,3280.3,3279.7,0.0722139]
[1736716320562,0.9853,3280.6,3279.7,2.23699435]
[1736716320706,0.55,3280.5,3279.7,0.0722139]
[1736716320915,0.916905,3280.5,3279.7,0.0722139]
[1736716321756,3.050745,3280.5,3279.7,0.0722139]
[1736716321955,4.68070376,3280.5,3279.7,0.0722139]
[1736716322753,2.54686376,3280.5,3279.7,0.0722139]
[1736716322925,0.55,3280.3,3279.7,0.0722139]
[1736716323127,0.7689,3280.2,3279.7,0.0722139]
[1736716324721,0.55,3280.3,3279.7,0.0722139]
[1736716324929,2.39885876,3280.5,3279.7,2.56908381]
[1736716325325,0.55,3280.4,3279.7,2.56908381]
[1736716328770,0.55,3280.4,3279.7,7.94908381]
[1736716329072,0.55,3280.4,3279.8,0.7569]
[1736716329458,0.55,3280.4,3279.9,0.0727511]
[1736716330424,1.62995876,3280.5,3280.0,0.7569]
[1736716330986,1.62995876,3280.5,3280.1,0.0727511]
[1736716336761,3.76377876,3280.5,3280.1,0.0727511]
[1736716341496,0.55,3280.4,3280.1,0.0727511]
[1736716341649,3.50129,3280.4,3280.1,0.0727511]
[1736716342218,3.50129,3280.4,3280.2,0.072711]
[1736716342683,3.50129,3280.4,3279.7,5.38]
[1736716342850,3.50129,3280.4,3280.3,0.072711]
[1736716343049,4.15594533,3280.4,3279.7,5.38]
[1736716343298,3.50129,3280.4,3280.3,0.072711]
[1736716343540,3.50129,3280.4,3279.8,0.8088]
[1736716343660,2.68389,3280.4,3280.3,0.072711]
[1736716344153,2.68389,3280.4,3279.8,0.8088]
[1736716344351,2.68389,3280.4,3279.9,0.072711]
[1736716345302,1.75630459,3280.0,3279.9,0.072711]
[1736716345481,4.69354459,3280.0,3279.9,0.072711]
[1736716345801,2.13427,3279.8,3279.3,0.829]
[1736716345944,2.13427,3279.8,3279.4,0.07282326]
[1736716346886,2.68435,3279.7,3279.4,0.07282326]
[1736716347183,0.209,3279.8,3279.4,0.07282326]
[1736716347388,0.209,3279.8,3279.4,0.829]
[1736716347574,0.209,3279.8,3279.5,0.07282326]
[1736716348578,0.209,3279.8,3279.4,0.829]
[1736716348888,0.209,3279.8,3279.5,0.07282326]
[1736716352811,0.209,3279.8,3279.1,6.2033]
[1736716352812,0.55,3279.5,3279.1,6.2033]
[1736716353666,0.7883,3279.3,3279.2,0.07129392]
[1736716353993,4.67920459,3279.3,3279.2,0.07129392]
[1736716354295,4.67920459,3279.3,3278.7,0.8233]
[1736716354296,2.68466,3279.2,3278.7,0.8233]
[1736716354596,1.99460459,3279.3,3278.1,2.13538]
[1736716354597,0.55,3278.8,3278.4,0.8233]
[1736716354958,0.209,3279.0,3278.4,0.8233]
[1736716357081,0.55,3278.9,3278.4,0.8233]
[1736716360065,0.55,3278.9,3278.5,0.07172587]
[1736716360323,0.209,3279.0,3278.5,0.07172587]
[1736716362684,0.209,3279.0,3278.5,2.20682587]
[1736716362885,0.209,3279.0,3278.5,2.50983846]
[1736716363086,0.759,3279.2,3278.5,2.50983846]
[1736716363517,0.759,3279.2,3278.5,3.11226502]
[1736716363726,0.759,3279.2,3278.5,2.80925243]
[1736716364628,0.759,3279.2,3278.5,2.20682587]
[1736716365187,0.55,3279.2,3278.5,2.20682587]
[1736716365390,0.759,3279.2,3278.5,2.20682587]
[1736716367749,0.759,3279.2,3278.5,0.07172587]
[1736716368035,0.55,3279.0,3278.5,0.07172587]
[1736716370897,0.55,3279.1,3278.5,0.07172587]
[1736716372009,0.55,3279.1,3278.6,0.8233]
[1736716372211,0.55,3279.1,3278.7,0.07256843]
[1736716373236,0.55,3278.9,3278.7,0.07256843]
[1736716373599,0.94290482,3278.8,3278.5,0.8164]
[1736716373898,0.55,3278.7,3278.6,0.07256843]
[1736716374297,0.55,3278.5,3278.1,1e-05]
[1736716377059,0.8286,3278.9,3278.1,2.13539]
[1736716377860,2.5504482,3279.0,3278.4,2.13516]
[1736716377861,0.209,3279.0,3278.4,2.13516]
[1736716378603,0.55,3278.9,3278.4,2.13516]
[1736716379552,0.55,3278.9,3278.5,0.7648]
[1736716384939,0.209,3279.2,3278.7,0.7648]
[1736716385269,0.209,3279.2,3278.7,2.89976]
[1736716385651,0.55,3279.1,3278.7,2.89976]
[1736716386722,0.55,3279.1,3278.8,0.07327483]
[1736716387073,0.55,3279.1,3278.7,2.89976]
[1736716387253,0.55,3279.1,3278.9,0.07327483]
[1736716387558,0.55,3279.1,3278.7,2.89976]
[1736716387740,0.55,3279.1,3279.0,0.07327483]
[1736716387945,0.55,3279.1,3278.7,2.89976]
[1736716388136,0.55,3279.1,3279.0,0.07327483]
[1736716388337,0.55,3279.4,3278.7,2.89976]
[1736716388663,0.55,3279.4,3278.8,2.13491]
[1736716388857,0.55,3279.4,3278.9,0.7648]
[1736716389166,0.43526346,3279.8,3279.0,2.13473]
[1736716389370,0.209,3279.8,3279.1,0.7648]
[1736716389665,0.55,3279.7,3279.1,0.7648]
[1736716389820,0.55,3279.7,3279.2,0.07272897]
[1736716391040,0.55,3279.8,3279.2,0.07272897]
[1736716399272,0.55,3279.8,3279.1,2.8995]
[1736716399572,0.55,3279.8,3279.3,0.0722715]
[1736716399757,0.70633,3279.8,3279.1,2.8995]
[1736716399944,0.70633,3279.8,3279.4,0.0722715]
[1736716400348,0.70633,3279.8,3279.1,2.8995]
[1736716400757,0.70633,3279.8,3279.2,0.0722715]
[1736716402763,0.55,3279.6,3279.2,0.0722715]
[1736716402974,0.751843,3279.6,3279.2,0.0722715]
[1736716403178,0.751843,3279.6,3278.9,2.13484]
[1736716403370,1.95895033,3279.6,3279.3,0.07206284]
[1736716403570,1.75710733,3279.6,3278.9,2.13484]
[1736716403973,1.75710733,3279.6,3279.0,0.07206284]
[1736716404285,0.55,3279.3,3279.0,0.07206284]
[1736716404474,0.55,3279.3,3278.7,2.92096]
[1736716404654,0.55,3279.3,3279.1,0.07206284]
[1736716404859,0.72571073,3279.3,3278.7,0.786]
[1736716405058,0.55,3279.3,3279.2,0.07206284]
[1736716405272,0.55,3279.3,3278.7,0.786]
[1736716405454,0.55,3279.4,3279.2,0.07206284]
[1736716405673,0.55,3279.4,3278.7,0.786]
[1736716405866,0.55,3279.6,3279.3,0.07206284]
[1736716406173,0.55,3279.4,3278.7,0.786]
[1736716406549,0.55,3279.4,3278.8,0.07206284]
[1736716407952,0.55,3279.4,3278.8,2.20698284]
[1736716408191,0.55,3279.6,3278.8,2.20698284]
[1736716411558,0.55,3279.6,3278.8,0.07206284]
[1736716411766,0.7621,3279.3,3278.8,0.07206284]
[1736716412070,0.55,3279.2,3278.7,0.786]
[1736716412280,0.55,3279.2,3278.9,0.07231964]
[1736716412445,0.55,3279.2,3278.7,0.786]
[1736716412649,0.55,3279.2,3278.8,0.07231964]
[1736716412874,0.93625006,3279.2,3278.7,0.786]
[1736716413074,0.93625006,3279.2,3278.9,0.07231964]
[1736716413276,0.93625006,3279.2,3278.7,0.786]
[1736716413585,0.93625006,3279.2,3279.0,0.07231964]
[1736716413752,0.93625006,3279.2,3278.7,0.786]
[1736716413953,0.93625006,3279.2,3279.1,0.07231964]
[1736716414153,0.93625006,3279.2,3278.7,0.786]
[1736716414352,0.93625006,3279.2,3279.1,0.07231964]
[1736716414590,0.93625006,3279.2,3278.7,0.786]
[1736716414756,0.93625006,3279.2,3279.1,0.07231964]
[1736716414948,0.93625006,3279.2,3278.7,0.786]
[1736716415154,0.93625006,3279.2,3279.1,0.07231964]
[1736716415353,0.93625006,3279.2,3278.7,0.786]
[1736716415555,0.55,3279.0,3278.7,0.786]
[1736716416092,0.55,3279.1,3278.7,0.786]
[1736716416808,0.55,3279.1,3278.8,0.07098631]
[1736716417155,0.55,3279.1,3278.7,0.786]
[1736716417397,0.55,3279.1,3278.9,0.07098631]
[1736716417550,0.55,3279.1,3278.8,0.07135551]
[1736716417754,0.55,3279.1,3278.7,0.786]
[1736716417968,0.55,3279.1,3278.9,0.07135551]
[1736716418293,0.55,3279.1,3278.7,0.786]
[1736716418294,0.74073501,3279.1,3279.0,0.07135551]
[1736716418492,0.74073501,3279.1,3278.7,0.786]
[1736716418706,0.55,3279.1,3279.0,0.07135551]
[1736716418907,0.55,3279.1,3278.7,0.786]
[1736716419115,0.55,3279.1,3279.0,0.07135551]
[1736716419608,0.55,3279.1,3278.7,0.786]
[1736716419815,0.55,3279.1,3279.0,0.07135551]
[1736716419974,0.55,3279.1,3278.7,0.786]
[1736716420176,0.55,3279.1,3279.0,0.07135551]
[1736716420410,0.55,3279.1,3278.7,0.786]
[1736716420604,0.55,3279.1,3279.0,0.07135551]
[1736716420815,0.55,3279.1,3278.7,0.786]
[1736716421414,0.55,3279.1,3278.8,0.07135551]
[1736716421772,0.55,3279.1,3278.7,0.786]
[1736716421977,0.55,3279.1,3278.9,0.07135551]
[1736716422278,0.55,3279.1,3278.7,0.786]
[1736716422482,0.55,3279.1,3278.8,0.07135551]
[1736716422701,0.55,3279.1,3278.7,0.786]
[1736716422900,0.55,3279.1,3278.9,0.07135551]
[1736716423098,0.209,3279.2,3278.7,0.786]
[1736716423298,0.55,3279.1,3279.0,0.07135551]
[1736716423504,0.55,3279.1,3278.7,0.786]
[1736716423685,0.55,3279.1,3279.0,0.07135551]
[1736716423890,0.55,3279.1,3278.7,0.786]
[1736716424185,0.55,3279.1,3279.0,0.07135551]
[1736716424515,0.75867051,3279.1,3279.0,0.07135551]
[1736716424715,0.75867051,3279.1,3278.7,0.786]
[1736716424921,0.55,3279.1,3278.7,0.786]
[1736716425219,0.55,3279.1,3278.8,0.07135551]
[1736716425578,0.55,3279.1,3278.7,0.786]
[1736716425819,0.55,3279.1,3278.9,0.07135551]
[1736716426115,0.55,3279.1,3279.0,0.07135551]
[1736716426508,0.55,3279.1,3278.7,0.786]
[1736716426824,0.55,3279.1,3279.0,0.07135551]
[1736716426978,0.55,3279.1,3278.7,0.786]
[1736716427183,0.55,3279.1,3279.0,0.07135551]
[1736716427384,0.55,3279.1,3278.7,0.786]
[1736716427712,0.55,3279.1,3279.0,0.07135551]
[1736716427880,0.55,3279.1,3278.4,2.74319095]
[1736716427881,1.63125316,3279.1,3278.4,2.13512]
[1736716428089,1.41643155,3279.2,3278.5,0.07127524]
[1736716428090,0.55,3278.8,3278.5,0.07127524]
[1736716428309,0.55,3278.8,3278.3,0.8245]
[1736716428509,0.55,3278.8,3278.6,0.07127524]
[1736716428704,0.55,3278.8,3278.3,0.8245]
[1736716428906,0.55,3278.8,3278.7,0.07127524]
[1736716429425,0.55,3278.8,3278.3,2.95974]
[1736716429607,0.55,3278.8,3278.7,0.07127524]
[1736716429809,0.55,3278.8,3278.3,2.95974]
[1736716429983,0.55,3278.8,3278.7,0.07127524]
[1736716430190,0.55,3278.8,3278.3,2.95974]
[1736716430389,0.55,3278.8,3278.7,0.07127524]
[1736716430692,0.55,3278.8,3278.3,2.95974]
[1736716430886,0.55,3278.8,3278.4,0.07127524]
[1736716433323,0.55,3278.9,3278.4,2.20643524]
[1736716433525,0.55,3278.9,3278.4,2.50952876]
[1736716436411,0.55,3279.0,3278.4,2.50952876]
[1736716436626,0.55,3279.0,3278.4,2.20643524]
[1736716441808,0.209,3279.2,3278.5,0.8061]
[1736716442040,1.20743155,3279.3,3278.6,2.135]
[1736716442212,0.55,3279.1,3278.6,2.20653209]
[1736716443161,0.55,3279.1,3278.7,2.94108]
[1736716443357,0.55,3279.1,3278.7,3.01244353]
[1736716443704,0.55,3279.1,3278.7,0.87746353]
[1736716443908,0.8266,3279.8,3278.9,0.8061]
[1736716444166,1.20743155,3279.6,3279.0,2.13479]
[1736716444305,2.83792065,3279.6,3279.0,0.07130735]
[1736716444510,0.55,3279.5,3279.0,0.07130735]
[1736716444710,0.55,3279.5,3279.0,2.20609735]
[1736716445258,0.55,3279.3,3279.0,0.07130735]
[1736716445439,1.3766,3279.3,3279.0,0.07130735]
[1736716445761,0.55,3279.1,3277.8,6.1861]
[1736716446065,1.20743155,3278.4,3277.8,0.8061]
[1736716446358,0.55,3278.3,3278.2,0.06839963]
[1736716447541,0.55,3278.4,3278.2,0.06839963]
[1736716448053,1.17726408,3278.4,3278.2,0.06839963]
[1736716448957,0.209,3278.5,3278.2,0.06839963]
[1736716449457,0.209,3278.7,3278.2,0.06839963]
[1736716449813,0.55,3278.6,3278.2,0.06839963]
[1736716452845,0.55,3278.6,3278.2,0.83459963]
[1736716453060,0.55,3278.6,3278.2,0.7662]
[1736716453364,0.55,3278.6,3278.3,0.06918628]
[1736716453860,0.55,3278.6,3278.4,0.06918628]
[1736716454215,0.55,3278.6,3278.2,0.7662]
[1736716454414,3.0,3278.8,3278.5,0.06918628]
[1736716454654,0.209,3278.9,3278.2,0.7662]
[1736716454820,0.209,3278.9,3278.6,0.06918628]
[1736716455015,0.55,3278.7,3278.2,0.7662]
[1736716455953,1.375,3278.8,3278.2,0.7662]
[1736716458182,1.584,3278.8,3278.2,0.7662]
[1736716459681,4.584,3278.8,3278.2,0.7662]
[1736716461092,1.584,3278.8,3278.2,0.7662]
[1736716461383,1.584,3278.8,3278.2,1.05636]
[1736716461688,1.584,3278.8,3278.3,0.06966783]
[1736716462185,1.584,3278.8,3278.4,0.06966783]
[1736716462511,1.584,3278.8,3278.2,0.7662]
[1736716462699,1.584,3278.8,3278.5,0.06966783]
[1736716462896,1.584,3278.8,3278.2,0.7662]
[1736716463051,1.584,3278.8,3278.6,0.06966783]
[1736716463253,1.584,3278.8,3278.2,0.7662]
[1736716463254,1.955879,3278.8,3278.2,0.7662]
[1736716463587,1.584,3278.8,3278.2,0.7662]
[1736716463804,0.55,3278.5,3278.3,0.06966783]
[1736716464308,0.55,3278.5,3277.7,1.3818]
[1736716464673,0.55,3278.5,3278.2,0.06961163]
[1736716468208,0.55,3278.3,3278.2,0.06961163]
[1736716468362,2.68525,3278.3,3278.2,0.06961163]
[1736716468567,3.034135,3278.3,3277.7,0.625]
[1736716471271,3.034135,3278.3,3278.2,0.06961163]
[1736716471817,0.898885,3278.3,3277.7,0.625]
[1736716471977,0.55,3278.3,3277.7,0.625]
[1736716472167,0.55,3278.3,3278.2,0.06961163]
[1736716472607,0.55,3278.3,3277.7,0.625]
[1736716473016,0.55,3278.3,3278.2,0.06961163]
[1736716473400,0.55,3278.3,3277.7,0.625]
[1736716473603,0.898884,3278.2,3277.7,0.625]
[1736716476613,0.898884,3278.2,3278.1,0.06995887]
[1736716478292,0.55,3278.2,3278.1,0.06995887]
[1736716478692,0.759,3278.2,3278.1,0.06995887]
[1736716479215,0.55,3278.2,3278.1,0.06995887]
[1736716481743,0.209,3278.6,3278.2,0.7694]
[1736716481919,3.32226075,3279.0,3278.2,0.7694]
[1736716482090,0.54122608,3278.9,3278.3,0.06994887]
[1736716482559,0.54122608,3278.9,3278.2,0.7694]
[1736716482830,0.55,3278.8,3278.3,0.07027806]
[1736716482997,0.55,3278.8,3278.2,0.7694]
[1736716483445,0.55,3278.8,3278.3,0.07027806]
[1736716483807,0.209,3278.9,3278.3,0.29749981]
[1736716484017,0.209,3278.9,3278.4,0.07027806]
[1736716484424,0.55,3278.8,3278.4,0.07027806]
[1736716484826,0.55,3278.8,3278.2,2.90471]
[1736716485024,0.55,3278.8,3278.5,0.06966783]
[1736716485224,0.55,3278.9,3278.2,2.90471]
[1736716485440,0.55,3278.9,3278.6,0.06966783]
[1736716485737,0.55,3278.9,3278.3,0.7694]
[1736716486237,0.55,3278.9,3278.4,0.06966783]
[1736716486626,0.55,3278.9,3278.5,0.7694]
[1736716487211,0.55,3279.1,3278.6,0.06966783]
[1736716487420,0.759,3279.1,3278.6,0.06966783]
[1736716488313,1.38058907,3279.1,3278.6,0.06966783]
[1736716492041,0.55,3278.7,3278.6,0.06966783]
[1736716492342,5.23695075,3278.7,3278.6,0.06966783]
[1736716492643,0.55,3278.4,3278.1,1e-05]
[1736716492843,0.55,3278.2,3278.1,1e-05]
[1736716493354,2.68531,3278.2,3278.1,0.06969389]
[1736716493641,3.49851,3278.2,3278.1,1e-05]
[1736716494834,3.50601,3278.2,3278.1,1e-05]
[1736716496419,6.52851,3278.2,3278.1,1e-05]
[1736716496623,7.47880837,3278.2,3278.1,1e-05]
[1736716497558,10.03076912,3278.2,3278.1,1e-05]
[1736716498038,10.01576912,3278.2,3278.1,1e-05]
[1736716499344,7.47880837,3278.2,3278.1,1e-05]
[1736716499518,10.02326912,3278.2,3278.1,1e-05]
[1736716501247,10.03076912,3278.2,3278.1,1e-05]
[1736716502437,7.47130837,3278.2,3278.1,1e-05]
[1736716502627,10.02326912,3278.2,3278.1,1e-05]
[1736716503905,10.03076912,3278.2,3278.1,1e-05]
[1736716508330,7.47880837,3278.2,3278.1,1e-05]
[1736716508527,10.23226912,3278.2,3278.1,1e-05]
[1736716509015,6.64310837,3278.2,3278.1,1e-05]
[1736716509215,5.34431,3278.2,3278.1,1e-05]
[1736716509460,3.209,3278.2,3278.1,1e-05]
[1736716509660,3.759,3278.2,3278.1,1e-05]
[1736716511630,0.759,3278.2,3278.1,1e-05]
[1736716512357,0.759,3278.2,3278.1,0.0704113]
[1736716512549,0.759,3278.2,3278.1,1e-05]
[1736716512957,0.759,3278.2,3278.1,0.0704113]
[1736716513133,0.759,3278.2,3278.1,1e-05]
[1736716513630,0.759,3278.2,3278.1,0.0704113]
[1736716515950,0.759,3278.2,3278.1,1e-05]
[1736716516356,0.759,3278.2,3278.1,0.07011406]
[1736716516788,0.55,3278.2,3278.1,0.07011406]
[1736716518693,0.55,3278.2,3278.1,1e-05]
[1736716518993,0.55,3278.2,3278.1,0.07011406]
[1736716520392,0.209,3278.4,3278.1,0.07011406]
[1736716520693,0.209,3278.4,3278.2,0.8255]
[1736716521205,3.37586075,3279.0,3278.3,0.06975065]
[1736716521206,0.209,3278.7,3278.3,0.06975065]
[1736716521402,0.209,3278.7,3278.2,0.8255]
[1736716521694,0.55,3278.6,3278.4,0.06975065]
[1736716521872,0.55,3278.6,3278.3,0.06975868]
[1736716522072,0.55,3278.6,3278.2,0.8255]
[1736716522280,0.55,3278.6,3278.4,0.06975868]
[1736716522462,0.55,3278.9,3278.2,0.8255]
[1736716522663,0.55,3278.7,3278.5,0.06975868]
[1736716522860,0.55,3278.7,3278.2,1.121593]
[1736716523067,0.55,3278.9,3278.6,0.06975868]
[1736716523398,0.55,3278.7,3278.2,1.121593]
[1736716523897,0.55,3278.7,3278.3,0.06975868]
[1736716524264,0.55,3278.7,3278.2,1.121593]
[1736716524487,0.55,3278.7,3278.4,0.06975868]
[1736716524798,0.55,3278.7,3278.5,0.06975868]
[1736716525115,0.55,3278.7,3278.2,0.8255]
[1736716525266,0.55,3278.7,3278.6,0.06975868]
[1736716525800,0.55,3278.7,3278.2,0.8255]
[1736716526003,0.55,3278.7,3278.3,0.06951775]
[1736716526187,2.13518,3278.4,3278.1,1e-05]
[1736716526388,0.55,3278.3,3278.2,0.06951775]
[1736716527188,2.68525,3278.3,3278.2,0.06951775]
[1736716527470,0.55,3278.3,3278.1,1e-05]
[1736716527866,0.55,3278.3,3278.2,0.06951775]
[1736716528308,0.55,3278.3,3278.1,1e-05]
[1736716528511,0.55,3278.3,3278.2,0.06951775]
[1736716530169,2.9888548,3278.3,3278.2,0.06951775]
[1736716530363,3.8127548,3278.3,3278.1,1e-05]
[1736716530603,5.69281,3278.2,3278.1,1e-05]
[1736716533828,6.51101,3278.2,3278.1,1e-05]
[1736716534323,6.52601,3278.2,3278.1,1e-05]
[1736716534528,7.67769256,3278.2,3278.1,1e-05]
[1736716539923,7.88769256,3278.2,3278.1,1e-05]
[1736716546861,6.52627,3277.8,3277.7,0.625]
[1736716547028,8.26029075,3277.4,3277.3,0.1488356]
[1736716547231,9.28099075,3277.4,3277.3,0.1488356]
[1736716547439,10.42265983,3277.4,3277.3,0.1488356]
[1736716548008,10.43015983,3277.4,3277.3,0.1488356]
[1736716554201,10.22015983,3277.4,3277.3,0.1488356]
[1736716554365,10.43015983,3277.4,3277.3,0.1488356]
[1736716556357,10.48592349,3277.4,3277.3,0.1488356]
[1736716557903,13.03788424,3277.4,3277.3,5.6e-06]
[1736716558281,13.28787902,3277.4,3277.3,5.6e-06]
[1736716559209,0.0075,3276.3,3275.4,0.7972]
[1736716559505,0.55,3276.1,3275.6,0.7972]
[1736716559805,0.55,3275.9,3275.6,0.7972]
[1736716560301,2.68682,3275.9,3275.7,0.0652319]
[1736716560464,6.50728,3275.8,3275.7,0.0652319]
[1736716560671,6.47773,3275.1,3275.0,0.005]
[1736716560868,5.90033,3275.1,3275.0,0.005]
[1736716561070,5.68733,3275.1,3275.0,0.005]
[1736716561266,5.90033,3275.1,3275.0,0.005]
[1736716561467,8.45229075,3275.1,3275.0,0.005]
[1736716561693,9.29751983,3275.1,3275.0,0.005]
[1736716562210,9.32751983,3275.1,3275.0,0.005]
[1736716563315,9.32751983,3275.1,3274.0,0.1670578]
[1736716563316,2.13746,3274.9,3274.0,0.1670578]
[1736716563614,2.13799,3274.1,3274.0,0.1670578]
[1736716563813,5.92349,3274.1,3274.0,0.1670578]
[1736716564418,3.0,3273.2,3272.0,2.93655]
[1736716564583,0.5575,3273.1,3272.0,0.4972047]
[1736716564789,0.5575,3272.7,3272.0,0.4972047]
[1736716564974,0.55,3272.7,3272.0,0.4972047]
[1736716565168,0.55,3272.7,3272.1,0.04683182]
[1736716565416,4.69811075,3273.1,3272.1,0.04683182]
[1736716565591,0.213,3272.6,3272.1,0.04683182]
[1736716567126,0.7904,3273.7,3272.1,0.04683182]
[1736716567293,1.84666269,3273.6,3272.1,0.077393]
[1736716567493,1.84666269,3273.6,3272.5,2.13902]
[1736716567821,0.55,3273.3,3272.6,0.84576179]
[1736716568328,2.68852,3273.3,3272.6,0.84576179]
[1736716568479,0.55,3273.3,3272.6,0.84576179]
[1736716568679,0.213,3273.2,3272.6,0.84576179]
[1736716569018,0.55,3273.1,3272.6,0.84576179]
[1736716569335,0.213,3273.2,3272.6,3.3137529]
[1736716569692,0.213,3273.2,3272.6,3.28319797]
[1736716570235,0.213,3273.2,3272.6,0.84576179]
[1736716570830,0.55,3273.1,3272.6,0.84576179]
[1736716572100,0.213,3273.2,3272.7,2.13888]
[1736716572300,1.63359603,3273.6,3272.8,2.13883]
[1736716572495,0.213,3273.5,3272.9,0.7972]
[1736716572898,0.55,3273.4,3272.9,0.7972]
[1736716573222,0.55,3273.4,3273.0,0.05129589]
[1736716573600,0.015,3273.3,3273.0,0.05129589]
[1736716573929,3.10196075,3273.1,3272.6,0.773]
[1736716574101,0.55,3272.8,3271.8,0.773]
[1736716574299,0.55,3272.6,3271.8,0.773]
[1736716574622,0.55,3272.6,3271.8,2.91243]
[1736716575927,0.55,3272.6,3271.9,2.13942]
[1736716576299,0.55,3272.6,3272.0,2.13935]
[1736716576510,0.213,3272.8,3272.3,2.13916]
[1736716577348,0.213,3272.8,3272.4,2.13908]
[1736716578316,0.0075,3273.0,3272.4,2.13908]
[1736716578626,0.5575,3272.9,3272.4,2.13908]
[1736716578820,0.213,3273.0,3272.6,0.7621]
[1736716579031,0.5575,3273.1,3272.6,0.7621]
[1736716579238,0.5575,3273.1,3272.6,2.90105]
[1736716579423,0.5575,3273.1,3272.6,0.7621]
[1736716580653,0.5575,3273.1,3272.6,2.90107]
[1736716581019,0.0225,3273.0,3272.6,2.90107]
[1736716581621,0.0225,3273.0,3272.7,0.051473]
[1736716581939,0.55,3273.1,3272.7,0.051473]
[1736716582110,1.84668427,3273.2,3272.7,0.051473]
[1736716582111,1.63368427,3273.2,3272.8,2.13877]
[1736716582629,0.5575,3273.1,3272.9,0.05118317]
[1736716584058,0.0075,3273.0,3272.9,0.05118317]
[1736716584423,0.0075,3273.0,3272.6,0.7621]
[1736716584654,0.0075,3273.0,3272.7,0.05118317]
[1736716585157,0.0075,3273.0,3272.6,0.7621]
[1736716585534,0.0075,3273.0,3272.7,0.05118317]
[1736716585858,0.0075,3273.0,3272.6,0.7621]
[1736716586282,0.0075,3273.0,3272.7,0.05118317]
[1736716587639,0.0075,3273.0,3272.6,0.7621]
[1736716587852,0.0075,3273.0,3272.7,0.05118317]
[1736716589727,0.015,3272.8,3272.7,0.05118317]
[1736716590082,0.015,3272.8,3272.4,0.0008]
[1736716590384,0.03,3272.8,3272.7,0.05102217]
[1736716590672,0.03,3272.8,3272.7,0.05107047]